[Event "TUR-ch Veterans 2019"]
[Site "Belek"]
[Date "2019.01.22"]
[Round "3.20"]
[White "Turkucu, Eyup"]
[Black "Suzan, Mehmet"]
[Result "0-1"]
[ECO "E61"]
[WhiteElo "1214"]
[BlackElo "1501"]
[Annotator "NA"]
[PlyCount "160"]
[EventDate "2019.01.20"]
[EventType "swiss"]
[EventCountry "TUR"]
[SourceTitle "playchess.com"]
[Source "ChessBase"]
[SourceQuality "1"]
[TimeControl "5400+30"]

1. d4 {[%emt 0:00:30]} Nf6 {[%emt 0:00:30]} 2. c4 {[%emt 0:00:30]} g6 {[%emt 0:00:30]} 3. Nf3 {[%emt 0:00:00]} Bg7 {[%emt 0:00:00]} 4. e3 {[%emt 0:00:00]} O-O {[%emt 0:00:00]} 5. Bd3 {[%emt 0:00:30]} d6 {[%emt 0:00:30]} 6. Nc3 {[%emt 0:00:00]} e5 {[%emt 0:00:00]} 7. O-O {[%emt 0:00:00]} Nc6 {[%emt 0:00:00]} 8. d5 {[%emt 0:03:30]} Ne7 {[%emt 0:00:30]} 9. e4 {[%emt 0:02:30]} Ne8 {[%emt 0:03:30]} 10. Ne2 {[%emt 0:01:30]} f5 {[%emt 0:00:30]} 11. exf5 {[%emt 0:01:30]} gxf5 {[%emt 0:00:30]} 12. Bc2 {[%emt 0:02:30]} h6 {[%emt 0:02:30]} 13. Ng3 {[%emt 0:01:30]} Nf6 {[%emt 0:01:30]} 14. Nh4 {[%emt 0:01:30]} f4 {[%emt 0:09:30]} 15. Nh5 {[%emt 0:01:30]} Nxh5 {[%emt 0:02:30]} 16. Qxh5 {[%emt 0:00:30]} Qe8 {[%emt 0:00:30]} 17. Qxe8 {[%emt 0:03:30]} Rxe8 {[%emt 0:01:30]} 18. Be4 {[%emt 0:01:30]} Bf6 {[%emt 0:00:00]} 19. Ng6 {[%emt 0:00:30]} Nxg6 {[%emt 0:00:00]} 20. Bxg6 {[%emt 0:00:30]} Rf8 {[%emt 0:00:30]} 21. g3 {[%emt 0:08:30]} Bh3 {[%emt 0:01:30]} 22. Re1 {[%emt 0:00:30]} fxg3 {[%emt 0:00:30]} 23. Bxh6 {[%emt 0:01:30]} gxf2+ {[%emt 0:01:30]} 24. Kxf2 {[%emt 0:01:30]} Bg7+ {[%emt 0:07:30]} 25. Kg3 {[%emt 0:01:30]} Bxh6 {[%emt 0:02:30]} 26. Kxh3 {[%emt 0:00:00]} Rf2 {[%emt 0:00:00]} 27. b3 {[%emt 0:04:00]} Bf4 {[%emt 0:01:00]} 28. Rh1 {[%emt 0:00:30]} Kg7 {[%emt 0:00:30]} 29. Be4 {[%emt 0:05:30]} Rh8+ {[%emt 0:00:30]} 30. Kg4 {[%emt 0:00:30]} Rhxh2 {[%emt 0:03:30]} 31. Rxh2 {[%emt 0:01:30]} Rxh2 {[%emt 0:00:30]} 32. Rh1 {[%emt 0:00:30]} Re2 {[%emt 0:05:30]} 33. Rh7+ {[%emt 0:05:30]} Kg8 {[%emt 0:01:30]} 34. Bf5 {[%emt 0:00:30]} Rg2+ {[%emt 0:05:30]} 35. Kf3 {[%emt 0:00:00]} Rg3+ {[%emt 0:01:30]} 36. Kf2 {[%emt 0:00:00]} Rg5 {[%emt 0:00:30]} 37. Be4 {[%emt 0:00:30]} Rg7 {[%emt 0:01:30]} 38. Rh5 {[%emt 0:03:30]} Bd2 {[%emt 0:01:30]} 39. Rf5 {[%emt 0:02:30]} Bb4 {[%emt 0:01:30]} 40. Rh5 {[%emt 0:00:30]} Bc5+ {[%emt 0:00:30]} 41. Ke2 {[%emt 0:03:30]} Rg3 {[%emt 0:00:30]} 42. Bf5 {[%emt 0:00:30]} a5 {[%emt 0:00:30]} 43. Be6+ {[%emt 0:00:30]} Kg7 {[%emt 0:00:00]} 44. Rf5 {[%emt 0:01:30]} Bb6 {[%emt 0:01:00]} 45. Rf7+ {[%emt 0:01:30]} Kg6 {[%emt 0:00:00]} 46. Rf8 {[%emt 0:00:30]} Rg2+ {[%emt 0:01:00]} 47. Kd3 {[%emt 0:02:30]} Rxa2 {[%emt 0:00:00]} 48. Bd7 {[%emt 0:00:30]} Ra1 {[%emt 0:02:00]} 49. Bc8 {[%emt 0:00:30]} Ra3 {[%emt 0:03:30]} 50. Kc2 {[%emt 0:00:30]} a4 {[%emt 0:03:30]} 51. bxa4 {[%emt 0:01:30]} Rxa4 {[%emt 0:02:30]} 52. Kb3 {[%emt 0:00:30]} Ra1 {[%emt 0:02:30]} 53. Bxb7 {[%emt 0:00:00]} e4 {[%emt 0:00:30]} 54. Bc8 {[%emt 0:02:00]} e3 {[%emt 0:00:30]} 55. Bg4 {[%emt 0:00:30]} Kg5 {[%emt 0:00:30]} 56. Rg8+ {[%emt 0:02:30]} Kf4 {[%emt 0:00:30]} 57. Be2 {[%emt 0:05:30]} Re1 {[%emt 0:01:30]} 58. Bd3 {[%emt 0:00:30]} Rd1 {[%emt 0:00:30]} 59. Kc2 {[%emt 0:00:30]} Rd2+ {[%emt 0:00:30]} 60. Kc3 {[%emt 0:01:30]} Ba5+ {[%emt 0:00:00]} 61. Kd4 {[%emt 0:00:00]} e2 {[%emt 0:01:00]} 62. Rf8+ {[%emt 0:01:00]} Kg4 {[%emt 0:00:30]} 63. Rg8+ {[%emt 0:01:30]} Kh5 {[%emt 0:00:30]} 64. Rh8+ {[%emt 0:00:30]} Kg5 {[%emt 0:01:30]} 65. Rg8+ {[%emt 0:00:30]} Kf6 {[%emt 0:00:00]} 66. Re8 {[%emt 0:01:30]} Rxd3+ {[%emt 0:00:00]} 67. Kxd3 {[%emt 0:00:30]} e1=Q {[%emt 0:00:30]} 68. Rxe1 {[%emt 0:01:30]} Bxe1 {[%emt 0:00:30]} 69. Ke4 {[%emt 0:00:30]} Bf2 {[%emt 0:00:00]} 70. Kf4 {[%emt 0:01:30]} Bb6 {[%emt 0:00:00]} 71. Ke4 {[%emt 0:01:30]} Kg5 {[%emt 0:00:00]} 72. Kd3 {[%emt 0:01:30]} Kf4 {[%emt 0:00:00]} 73. Kc3 {[%emt 0:01:30]} Ke3 {[%emt 0:00:00]} 74. Kb4 {[%emt 0:00:30]} Kd3 {[%emt 0:01:00]} 75. Kb3 {[%emt 0:00:30]} Bc5 {[%emt 0:00:30]} 76. Ka4 {[%emt 0:01:30]} Kxc4 {[%emt 0:00:30]} 77. Ka5 {[%emt 0:00:00]} Kxd5 {[%emt 0:00:00]} 78. Ka4 {[%emt 0:00:00]} Kc4 {[%emt 0:00:00]} 79. Ka5 {[%emt 0:00:30]} d5 {[%emt 0:00:00]} 80. Ka4 {[%emt 0:00:00]} d4 {[%emt 0:00:00]} 0-1

[Event "TUR-ch Veterans 2019"]
[Site "Belek"]
[Date "2019.01.23"]
[Round "4.1"]
[White "Guner, Bulent"]
[Black "Yasin, Hur"]
[Result "1/2-1/2"]
[ECO "A30"]
[WhiteElo "1987"]
[BlackElo "2004"]
[Annotator "NA"]
[PlyCount "99"]
[EventDate "2019.01.20"]
[EventType "swiss"]
[EventCountry "TUR"]
[SourceTitle "playchess.com"]
[Source "ChessBase"]
[SourceQuality "1"]
[TimeControl "5400+30"]

1. Nf3 {[%emt 0:00:30]} Nf6 {[%emt 0:00:30]} 2. c4 {[%emt 0:00:00]} c5 {[%emt 0:05:30]} 3. g3 {[%emt 0:01:00]} d5 {[%emt 0:01:30]} 4. cxd5 {[%emt 0:02:30]} Nxd5 {[%emt 0:00:30]} 5. Bg2 {[%emt 0:07:30]} Nc6 {[%emt 0:00:00]} 6. d4 {[%emt 0:07:30]} cxd4 {[%emt 0:18:00]} 7. Nxd4 {[%emt 0:03:30]} Ndb4 {[%emt 0:00:30]} 8. Nxc6 {[%emt 0:09:30]} Qxd1+ {[%emt 0:00:30]} 9. Kxd1 {[%emt 0:00:30]} Nxc6 {[%emt 0:00:30]} 10. Nc3 {[%emt 0:02:30]} Bf5 {[%emt 0:03:30]} 11. Be3 {[%emt 0:04:30]} e5 {[%emt 0:05:30]} 12. Rc1 {[%emt 0:06:30]} O-O-O+ {[%emt 0:06:30]} 13. Ke1 {[%emt 0:01:30]} Nd4 {[%emt 0:04:30]} 14. Be4 {[%emt 0:06:30]} Bxe4 {[%emt 0:05:30]} 15. Nxe4+ {[%emt 0:01:30]} Kb8 {[%emt 0:00:30]} 16. f3 {[%emt 0:03:30]} h6 {[%emt 0:02:30]} 17. g4 {[%emt 0:02:30]} Be7 {[%emt 0:00:30]} 18. Kf2 {[%emt 0:05:30]} Bh4+ {[%emt 0:03:30]} 19. Ng3 {[%emt 0:00:30]} Rd7 {[%emt 0:03:30]} 20. Rhd1 {[%emt 0:01:30]} Rhd8 {[%emt 0:00:00]} 21. Bxd4 {[%emt 0:02:30]} Rxd4 {[%emt 0:00:00]} 22. Rxd4 {[%emt 0:00:00]} Rxd4 {[%emt 0:00:30]} 23. Rc2 {[%emt 0:01:00]} g6 {[%emt 0:01:30]} 24. Kg2 {[%emt 0:00:30]} Bd8 {[%emt 0:04:30]} 25. Ne4 {[%emt 0:01:30]} Bb6 {[%emt 0:01:30]} 26. Rd2 {[%emt 0:05:30]} Rxd2 {[%emt 0:01:30]} 27. Nxd2 {[%emt 0:00:00]} Bd4 {[%emt 0:00:30]} 28. b3 {[%emt 0:01:00]} Kc7 {[%emt 0:08:30]} 29. Nc4 {[%emt 0:01:30]} b5 {[%emt 0:01:30]} 30. Na3 {[%emt 0:00:00]} Kc6 {[%emt 0:01:30]} 31. Nc2 {[%emt 0:00:00]} Bc5 {[%emt 0:02:08]} 32. e4 {[%emt 0:02:30]} Kd6 {[%emt 0:01:32]} 33. Ne1 {[%emt 0:01:30]} a5 {[%emt 0:01:46]} 34. Nc2 {[%emt 0:00:30]} Ke6 {[%emt 0:00:35]} 35. Ne1 {[%emt 0:00:30]} f5 {[%emt 0:01:31]} 36. gxf5+ {[%emt 0:01:31]} gxf5 {[%emt 0:00:03]} 37. Nc2 {[%emt 0:02:51]} Kf6 {[%emt 0:00:08]} 38. Ne1 {[%emt 0:02:30]} Kg5 {[%emt 0:02:13]} 39. Nd3 {[%emt 0:00:39]} Bd4 {[%emt 0:01:09]} 40. Kg3 {[%emt 0:03:55]} Be3 {[%emt 0:01:13]} 41. Kg2 {[%emt 0:01:16]} Bd4 {[%emt 0:00:50]} 42. Kg3 {[%emt 0:01:23]} a4 {[%emt 0:00:50]} 43. Kg2 {[%emt 0:00:22]} axb3 {[%emt 0:00:55]} 44. axb3 {[%emt 0:00:06]} fxe4 {[%emt 0:00:00]} 45. fxe4 {[%emt 0:00:12]} Kg4 {[%emt 0:00:00]} 46. h3+ {[%emt 0:00:25]} Kh4 {[%emt 0:00:43]} 47. Ne1 {[%emt 0:00:22]} Kg5 {[%emt 0:02:42]} 48. Kf3 {[%emt 0:00:17]} Bc3 {[%emt 0:01:06]} 49. Nc2 {[%emt 0:01:01]} Kh4 {[%emt 0:01:15]} 50. Kg2 {[%emt 0:00:04]} 1/2-1/2

[Event "TUR-ch Veterans 2019"]
[Site "Belek"]
[Date "2019.01.23"]
[Round "4.2"]
[White "Tofan, Ibrahim"]
[Black "Marthedal, Anton Mehmet Yildiz"]
[Result "0-1"]
[ECO "B01"]
[WhiteElo "2070"]
[BlackElo "1885"]
[Annotator "NA"]
[PlyCount "108"]
[EventDate "2019.01.20"]
[EventType "swiss"]
[EventCountry "TUR"]
[SourceTitle "playchess.com"]
[Source "ChessBase"]
[SourceQuality "1"]
[TimeControl "5400+30"]

1. e4 {[%emt 0:00:30]} d5 {[%emt 0:00:30]} 2. exd5 {[%emt 0:00:00]} Nf6 {[%emt 0:00:30]} 3. Bb5+ {[%emt 0:03:00]} Bd7 {[%emt 0:00:30]} 4. Bc4 {[%emt 0:01:30]} b5 {[%emt 0:01:30]} 5. Be2 {[%emt 0:01:30]} Nxd5 {[%emt 0:01:30]} 6. Nc3 {[%emt 0:00:30]} Nf4 {[%emt 0:02:30]} 7. Bf3 {[%emt 0:00:30]} Bc6 {[%emt 0:06:30]} 8. Bxc6+ {[%emt 0:01:30]} Nxc6 {[%emt 0:01:30]} 9. Qf3 {[%emt 0:00:30]} Nd4 {[%emt 0:00:30]} 10. Qxf4 {[%emt 0:00:30]} Nxc2+ {[%emt 0:00:30]} 11. Kd1 {[%emt 0:00:30]} Nxa1 {[%emt 0:00:30]} 12. Qe4 {[%emt 0:05:30]} Rb8 {[%emt 0:03:30]} 13. Qc6+ {[%emt 0:00:30]} Qd7 {[%emt 0:00:00]} 14. Qxd7+ {[%emt 0:00:30]} Kxd7 {[%emt 0:00:00]} 15. b3 {[%emt 0:01:30]} g6 {[%emt 0:00:30]} 16. Bb2 {[%emt 0:04:30]} Bg7 {[%emt 0:00:30]} 17. Kc1 {[%emt 0:00:30]} Rhd8 {[%emt 0:02:30]} 18. Ne4 {[%emt 0:01:30]} Bxb2+ {[%emt 0:02:30]} 19. Kxb2 {[%emt 0:02:30]} f5 {[%emt 0:03:30]} 20. Nc3 {[%emt 0:01:30]} b4 {[%emt 0:02:30]} 21. Na4 {[%emt 0:02:30]} Rb5 {[%emt 0:01:30]} 22. Nf3 {[%emt 0:03:30]} e5 {[%emt 0:02:30]} 23. Rxa1 {[%emt 0:01:30]} e4 {[%emt 0:04:30]} 24. Ne1 {[%emt 0:00:00]} Rd5 {[%emt 0:00:30]} 25. Rd1 {[%emt 0:00:00]} Kc6 {[%emt 0:00:30]} 26. Kc1 {[%emt 0:00:30]} f4 {[%emt 0:03:30]} 27. Nc2 {[%emt 0:05:30]} Kb5 {[%emt 0:02:30]} 28. Nb2 {[%emt 0:07:30]} a5 {[%emt 0:00:30]} 29. Nc4 {[%emt 0:00:30]} a4 {[%emt 0:01:30]} 30. Re1 {[%emt 0:00:30]} Re8 {[%emt 0:10:30]} 31. d4 {[%emt 0:00:30]} Rh5 {[%emt 0:05:30]} 32. Ne5 {[%emt 0:07:30]} axb3 {[%emt 0:02:30]} 33. axb3 {[%emt 0:00:00]} Rxh2 {[%emt 0:00:30]} 34. Rxe4 {[%emt 0:00:00]} Rxg2 {[%emt 0:01:30]} 35. Rxf4 {[%emt 0:00:00]} c5 {[%emt 0:03:30]} 36. Nc4 {[%emt 0:01:00]} Re2 {[%emt 0:02:30]} 37. Rf6 {[%emt 0:01:30]} Rg1+ {[%emt 0:00:00]} 38. Kb2 {[%emt 0:01:30]} cxd4 {[%emt 0:00:00]} 39. Nd6+ {[%emt 0:03:30]} Kc5 {[%emt 0:03:30]} 40. Nb7+ {[%emt 0:00:30]} Kd5 {[%emt 0:00:30]} 41. Rd6+ {[%emt 0:05:30]} Ke5 {[%emt 0:00:30]} 42. f4+ {[%emt 0:05:30]} Kxf4 {[%emt 0:02:30]} 43. Rxd4+ {[%emt 0:00:00]} Ke5 {[%emt 0:00:30]} 44. Rxb4 {[%emt 0:00:00]} Rgg2 {[%emt 0:01:30]} 45. Rc4 {[%emt 0:00:30]} h5 {[%emt 0:00:30]} 46. Nc5 {[%emt 0:01:30]} h4 {[%emt 0:05:30]} 47. Nd3+ {[%emt 0:00:30]} Kf5 {[%emt 0:00:30]} 48. Ndb4 {[%emt 0:09:30]} h3 {[%emt 0:01:30]} 49. Kc3 {[%emt 0:09:09]} Kg5 {[%emt 0:02:04]} 50. Rc8 {[%emt 0:03:03]} Re4 {[%emt 0:04:07]} 51. Nd4 {[%emt 0:09:11]} Rg3+ {[%emt 0:01:04]} 52. Kc4 {[%emt 0:01:52]} h2 {[%emt 0:00:23]} 53. Rc5+ {[%emt 0:01:09]} Kh6 {[%emt 0:00:25]} 54. Rc8 {[%emt 0:00:37]} Rh4 {[%emt 0:03:10]} 0-1

[Event "TUR-ch Veterans 2019"]
[Site "Belek"]
[Date "2019.01.23"]
[Round "4.3"]
[White "Sezgun, Yakup"]
[Black "Buker, Muhittin"]
[Result "0-1"]
[ECO "D11"]
[WhiteElo "1757"]
[BlackElo "1978"]
[Annotator "NA"]
[PlyCount "100"]
[EventDate "2019.01.20"]
[EventType "swiss"]
[EventCountry "TUR"]
[SourceTitle "playchess.com"]
[Source "ChessBase"]
[SourceQuality "1"]
[TimeControl "5400+30"]

1. Nf3 {[%emt 0:00:30]} d5 {[%emt 0:00:30]} 2. g3 {[%emt 0:00:00]} Nf6 {[%emt 0:00:30]} 3. Bg2 {[%emt 0:00:00]} c6 {[%emt 0:00:30]} 4. O-O {[%emt 0:00:00]} Bg4 {[%emt 0:00:00]} 5. d4 {[%emt 0:00:00]} Nbd7 {[%emt 0:00:00]} 6. c4 {[%emt 0:00:30]} e6 {[%emt 0:00:30]} 7. Qb3 {[%emt 0:09:30]} Qb6 {[%emt 0:03:30]} 8. Qxb6 {[%emt 0:05:30]} axb6 {[%emt 0:00:00]} 9. cxd5 {[%emt 0:00:30]} exd5 {[%emt 0:00:00]} 10. h3 {[%emt 0:11:30]} Bf5 {[%emt 0:01:30]} 11. Bf4 {[%emt 0:01:30]} h6 {[%emt 0:01:30]} 12. g4 {[%emt 0:00:30]} Bh7 {[%emt 0:00:30]} 13. Nbd2 {[%emt 0:01:30]} Be7 {[%emt 0:03:30]} 14. Ne5 {[%emt 0:04:30]} g5 {[%emt 0:05:30]} 15. Bh2 {[%emt 0:07:30]} O-O {[%emt 0:01:30]} 16. a3 {[%emt 0:01:30]} Nxe5 {[%emt 0:01:30]} 17. Bxe5 {[%emt 0:00:30]} Ra4 {[%emt 0:01:30]} 18. e3 {[%emt 0:04:30]} Nd7 {[%emt 0:01:30]} 19. Bg3 {[%emt 0:02:30]} b5 {[%emt 0:00:30]} 20. f4 {[%emt 0:16:30]} Bd3 {[%emt 0:01:30]} 21. Rfc1 {[%emt 0:03:30]} Bd6 {[%emt 0:02:30]} 22. Bf1 {[%emt 0:03:30]} Bxf1 {[%emt 0:10:30]} 23. Rxf1 {[%emt 0:00:30]} gxf4 {[%emt 0:01:30]} 24. Bxf4 {[%emt 0:00:30]} Bxf4 {[%emt 0:00:00]} 25. Rxf4 {[%emt 0:00:30]} b4 {[%emt 0:00:00]} 26. Rb1 {[%emt 0:13:46]} Re8 {[%emt 0:07:30]} 27. Rf3 {[%emt 0:01:23]} bxa3 {[%emt 0:01:30]} 28. bxa3 {[%emt 0:00:07]} b5 {[%emt 0:00:00]} 29. Rb3 {[%emt 0:01:57]} Rea8 {[%emt 0:05:00]} 30. Nb1 {[%emt 0:02:24]} Kg7 {[%emt 0:00:00]} 31. Rc3 {[%emt 0:00:11]} R8a6 {[%emt 0:02:00]} 32. Rf1 {[%emt 0:00:31]} Nf6 {[%emt 0:01:30]} 33. Rfc1 {[%emt 0:00:30]} Rc4 {[%emt 0:03:30]} 34. Nd2 {[%emt 0:00:18]} Rxa3 {[%emt 0:15:30]} 35. Nxc4 {[%emt 0:00:18]} Rxc3 {[%emt 0:00:30]} 36. Rxc3 {[%emt 0:00:02]} dxc4 {[%emt 0:00:00]} 37. Kg2 {[%emt 0:02:23]} Nd5 {[%emt 0:00:00]} 38. Rc1 {[%emt 0:01:05]} Nxe3+ {[%emt 0:01:30]} 39. Kf3 {[%emt 0:00:15]} Nd5 {[%emt 0:00:30]} 40. Ke4 {[%emt 0:00:59]} Kf6 {[%emt 0:03:30]} 41. Ra1 {[%emt 0:03:54]} Ke6 {[%emt 0:01:30]} 42. Ra6 {[%emt 0:01:02]} Kd6 {[%emt 0:01:30]} 43. Ra7 {[%emt 0:00:59]} b4 {[%emt 0:00:30]} 44. Rxf7 {[%emt 0:00:33]} b3 {[%emt 0:00:30]} 45. Rb7 {[%emt 0:00:38]} Nc3+ {[%emt 0:02:30]} 46. Ke3 {[%emt 0:00:29]} b2 {[%emt 0:00:30]} 47. Rxb2 {[%emt 0:01:12]} Nd1+ {[%emt 0:00:00]} 48. Kd2 {[%emt 0:00:35]} Nxb2 {[%emt 0:00:00]} 49. Kc3 {[%emt 0:00:00]} Nd3 {[%emt 0:00:30]} 50. Kxc4 {[%emt 0:00:00]} Nf2 {[%emt 0:00:00]} 0-1

[Event "TUR-ch Veterans 2019"]
[Site "Belek"]
[Date "2019.01.23"]
[Round "4.4"]
[White "Korkmaz, Turhan"]
[Black "Onem, Cem"]
[Result "1-0"]
[ECO "A13"]
[WhiteElo "1977"]
[BlackElo "1840"]
[Annotator "NA"]
[PlyCount "85"]
[EventDate "2019.01.20"]
[EventType "swiss"]
[EventCountry "TUR"]
[SourceTitle "playchess.com"]
[Source "ChessBase"]
[SourceQuality "1"]
[TimeControl "5400+30"]

1. Nf3 {[%emt 0:00:30]} Nf6 {[%emt 0:00:30]} 2. e3 {[%emt 0:01:30]} d5 {[%emt 0:00:00]} 3. c4 {[%emt 0:00:30]} e6 {[%emt 0:01:00]} 4. b3 {[%emt 0:01:30]} Be7 {[%emt 0:00:30]} 5. Bb2 {[%emt 0:00:00]} O-O {[%emt 0:00:30]} 6. Nc3 {[%emt 0:02:00]} c5 {[%emt 0:03:30]} 7. cxd5 {[%emt 0:04:30]} exd5 {[%emt 0:04:30]} 8. d4 {[%emt 0:00:30]} b6 {[%emt 0:02:30]} 9. Bd3 {[%emt 0:02:30]} Bb7 {[%emt 0:00:30]} 10. Qb1 {[%emt 0:09:30]} Nc6 {[%emt 0:05:30]} 11. O-O {[%emt 0:03:30]} cxd4 {[%emt 0:03:30]} 12. exd4 {[%emt 0:00:30]} Nb4 {[%emt 0:16:30]} 13. Be2 {[%emt 0:00:30]} Bd6 {[%emt 0:00:30]} 14. a3 {[%emt 0:01:30]} Nc6 {[%emt 0:00:30]} 15. Bd3 {[%emt 0:01:30]} Na5 {[%emt 0:00:30]} 16. Qd1 {[%emt 0:05:30]} Ne4 {[%emt 0:06:30]} 17. Re1 {[%emt 0:02:30]} f5 {[%emt 0:05:30]} 18. Ne5 {[%emt 0:04:30]} Rc8 {[%emt 0:03:30]} 19. Nb5 {[%emt 0:02:30]} Bb8 {[%emt 0:12:30]} 20. f3 {[%emt 0:04:30]} a6 {[%emt 0:05:30]} 21. fxe4 {[%emt 0:05:30]} fxe4 {[%emt 0:00:00]} 22. Be2 {[%emt 0:04:30]} axb5 {[%emt 0:00:00]} 23. Bg4 {[%emt 0:00:30]} Rc7 {[%emt 0:05:30]} 24. Be6+ {[%emt 0:00:30]} Kh8 {[%emt 0:00:30]} 25. Qh5 {[%emt 0:01:30]} Rf6 {[%emt 0:05:00]} 26. Qh4 {[%emt 0:11:30]} Qe7 {[%emt 0:04:50]} 27. Bh3 {[%emt 0:11:58]} Kg8 {[%emt 0:04:28]} 28. Rf1 {[%emt 0:02:56]} Bc8 {[%emt 0:05:45]} 29. Bxc8 {[%emt 0:03:36]} Rxc8 {[%emt 0:00:12]} 30. Rxf6 {[%emt 0:00:16]} Qxf6 {[%emt 0:00:43]} 31. Qg4 {[%emt 0:03:35]} Rf8 {[%emt 0:00:15]} 32. Qe2 {[%emt 0:00:30]} Nc6 {[%emt 0:01:54]} 33. Nd7 {[%emt 0:01:29]} Bxh2+ {[%emt 0:00:32]} 34. Kxh2 {[%emt 0:00:38]} Qd6+ {[%emt 0:01:59]} 35. Ne5 {[%emt 0:00:09]} Qh6+ {[%emt 0:00:13]} 36. Kg1 {[%emt 0:00:13]} Nxe5 {[%emt 0:00:43]} 37. dxe5 {[%emt 0:00:13]} Rf5 {[%emt 0:00:31]} 38. Rc1 {[%emt 0:01:13]} Qh4 {[%emt 0:01:11]} 39. e6 {[%emt 0:01:14]} h6 {[%emt 0:00:06]} 40. Rc7 {[%emt 0:01:06]} e3 {[%emt 0:01:03]} 41. Rxg7+ {[%emt 0:00:17]} Kf8 {[%emt 0:00:12]} 42. e7+ {[%emt 0:00:14]} Ke8 {[%emt 0:00:24]} 43. Qxb5# {[%emt 0:00:20]} 1-0

[Event "TUR-ch Veterans 2019"]
[Site "Belek"]
[Date "2019.01.23"]
[Round "4.5"]
[White "Uzuner, Tufan Can"]
[Black "Aysoy, Veysi"]
[Result "1-0"]
[ECO "D77"]
[WhiteElo "1889"]
[BlackElo "1933"]
[Annotator "NA"]
[PlyCount "115"]
[EventDate "2019.01.20"]
[EventType "swiss"]
[EventCountry "TUR"]
[SourceTitle "playchess.com"]
[Source "ChessBase"]
[SourceQuality "1"]
[TimeControl "5400+30"]

1. Nf3 {[%emt 0:00:30]} Nf6 {[%emt 0:00:30]} 2. d4 {[%emt 0:01:30]} g6 {[%emt 0:00:30]} 3. g3 {[%emt 0:01:30]} d5 {[%emt 0:02:30]} 4. Bg2 {[%emt 0:00:30]} Bg7 {[%emt 0:00:30]} 5. O-O {[%emt 0:00:00]} O-O {[%emt 0:00:30]} 6. c4 {[%emt 0:01:00]} dxc4 {[%emt 0:02:30]} 7. Na3 {[%emt 0:07:30]} c3 {[%emt 0:06:30]} 8. bxc3 {[%emt 0:00:30]} c5 {[%emt 0:00:30]} 9. Nc4 {[%emt 0:08:30]} Nc6 {[%emt 0:06:30]} 10. Nce5 {[%emt 0:19:30]} Nxe5 {[%emt 0:04:30]} 11. Nxe5 {[%emt 0:04:30]} Nd5 {[%emt 0:10:30]} 12. Qb3 {[%emt 0:04:30]} Nb6 {[%emt 0:13:30]} 13. Rd1 {[%emt 0:08:30]} cxd4 {[%emt 0:01:30]} 14. cxd4 {[%emt 0:00:30]} Bd7 {[%emt 0:03:30]} 15. Nxd7 {[%emt 0:00:30]} Qxd7 {[%emt 0:00:30]} 16. Ba3 {[%emt 0:04:30]} Rfd8 {[%emt 0:05:30]} 17. Rac1 {[%emt 0:07:30]} e6 {[%emt 0:02:30]} 18. Rb1 {[%emt 0:07:30]} Rac8 {[%emt 0:03:30]} 19. e3 {[%emt 0:08:26]} Bf8 {[%emt 0:13:30]} 20. Bc5 {[%emt 0:01:45]} Nd5 {[%emt 0:04:54]} 21. Bxd5 {[%emt 0:04:24]} Qxd5 {[%emt 0:03:24]} 22. Bxf8 {[%emt 0:02:41]} Kxf8 {[%emt 0:01:38]} 23. Qxd5 {[%emt 0:01:23]} Rxd5 {[%emt 0:00:45]} 24. Rxb7 {[%emt 0:00:03]} Ra5 {[%emt 0:00:44]} 25. Rd2 {[%emt 0:01:09]} Rc1+ {[%emt 0:01:17]} 26. Kg2 {[%emt 0:00:03]} Ra1 {[%emt 0:00:00]} 27. Rbb2 {[%emt 0:00:46]} Ke7 {[%emt 0:00:31]} 28. e4 {[%emt 0:01:06]} h6 {[%emt 0:02:28]} 29. h4 {[%emt 0:00:05]} Re1 {[%emt 0:00:48]} 30. Rb7+ {[%emt 0:01:20]} Kf8 {[%emt 0:05:00]} 31. e5 {[%emt 0:01:04]} Rc1 {[%emt 0:00:07]} 32. Rd3 {[%emt 0:00:57]} f5 {[%emt 0:01:51]} 33. a3 {[%emt 0:01:10]} Rc6 {[%emt 0:01:53]} 34. Rdb3 {[%emt 0:00:10]} Rb6 {[%emt 0:01:02]} 35. R7xb6 {[%emt 0:00:12]} axb6 {[%emt 0:00:08]} 36. Rxb6 {[%emt 0:00:01]} Kf7 {[%emt 0:00:48]} 37. Rb7+ {[%emt 0:00:02]} Kf8 {[%emt 0:00:00]} 38. Rb3 {[%emt 0:00:18]} Ra4 {[%emt 0:00:04]} 39. Rd3 {[%emt 0:00:13]} Ke7 {[%emt 0:00:39]} 40. f4 {[%emt 0:01:09]} h5 {[%emt 0:00:49]} 41. Kf2 {[%emt 0:00:06]} Kd7 {[%emt 0:00:01]} 42. d5 {[%emt 0:00:00]} exd5 {[%emt 0:01:58]} 43. Rxd5+ {[%emt 0:00:17]} Kc6 {[%emt 0:00:30]} 44. Rd6+ {[%emt 0:00:51]} Kc5 {[%emt 0:00:30]} 45. Rxg6 {[%emt 0:00:00]} Rxa3 {[%emt 0:00:00]} 46. Rg5 {[%emt 0:01:14]} Kd5 {[%emt 0:00:45]} 47. Rxf5 {[%emt 0:00:03]} Ke4 {[%emt 0:00:16]} 48. Rxh5 {[%emt 0:00:01]} Ra2+ {[%emt 0:00:19]} 49. Ke1 {[%emt 0:00:08]} Ke3 {[%emt 0:00:07]} 50. Kd1 {[%emt 0:00:23]} Kd3 {[%emt 0:00:56]} 51. Kc1 {[%emt 0:00:02]} Kc3 {[%emt 0:00:17]} 52. Kb1 {[%emt 0:00:03]} Rb2+ {[%emt 0:00:42]} 53. Ka1 {[%emt 0:00:31]} Rb6 {[%emt 0:01:02]} 54. Rh8 {[%emt 0:00:20]} Ra6+ {[%emt 0:00:53]} 55. Kb1 {[%emt 0:00:02]} Rb6+ {[%emt 0:00:31]} 56. Kc1 {[%emt 0:00:04]} Ra6 {[%emt 0:00:04]} 57. Rc8+ {[%emt 0:00:14]} Kd3 {[%emt 0:00:08]} 58. f5 {[%emt 0:01:15]} 1-0

[Event "TUR-ch Veterans 2019"]
[Site "Belek"]
[Date "2019.01.23"]
[Round "4.6"]
[White "Azizoglu, Ayhan"]
[Black "Subasi, Zeki"]
[Result "1-0"]
[ECO "B22"]
[WhiteElo "1861"]
[BlackElo "1707"]
[Annotator "NA"]
[PlyCount "61"]
[EventDate "2019.01.20"]
[EventType "swiss"]
[EventCountry "TUR"]
[SourceTitle "playchess.com"]
[Source "ChessBase"]
[SourceQuality "1"]
[TimeControl "5400+30"]

1. e4 {[%emt 0:00:30]} c5 {[%emt 0:00:30]} 2. Nf3 {[%emt 0:00:30]} d6 {[%emt 0:00:00]} 3. c3 {[%emt 0:00:00]} Nc6 {[%emt 0:00:00]} 4. d4 {[%emt 0:00:00]} cxd4 {[%emt 0:00:30]} 5. cxd4 {[%emt 0:00:30]} Nf6 {[%emt 0:00:30]} 6. Nc3 {[%emt 0:00:30]} g6 {[%emt 0:00:00]} 7. h3 {[%emt 0:07:30]} a6 {[%emt 0:00:00]} 8. a4 {[%emt 0:04:30]} Bg7 {[%emt 0:00:30]} 9. Be3 {[%emt 0:01:30]} O-O {[%emt 0:00:30]} 10. Be2 {[%emt 0:01:30]} Bd7 {[%emt 0:00:30]} 11. d5 {[%emt 0:02:30]} Nb8 {[%emt 0:07:30]} 12. Qb3 {[%emt 0:05:30]} Bc8 {[%emt 0:01:30]} 13. a5 {[%emt 0:08:30]} Nbd7 {[%emt 0:00:30]} 14. Nd2 {[%emt 0:04:30]} Nc5 {[%emt 0:05:30]} 15. Qa3 {[%emt 0:01:30]} Qc7 {[%emt 0:07:30]} 16. O-O {[%emt 0:09:30]} Ncd7 {[%emt 0:09:30]} 17. Rac1 {[%emt 0:02:30]} Qd8 {[%emt 0:02:30]} 18. Nc4 {[%emt 0:07:30]} Rb8 {[%emt 0:01:30]} 19. Rc2 {[%emt 0:04:30]} h5 {[%emt 0:02:30]} 20. Rfc1 {[%emt 0:03:30]} Ne8 {[%emt 0:07:30]} 21. Na4 {[%emt 0:03:30]} Nef6 {[%emt 0:10:30]} 22. Ncb6 {[%emt 0:03:30]} Nxb6 {[%emt 0:03:30]} 23. Bxb6 {[%emt 0:01:30]} Qe8 {[%emt 0:01:30]} 24. Bc7 {[%emt 0:00:30]} Bd7 {[%emt 0:01:30]} 25. Nb6 {[%emt 0:01:30]} Bb5 {[%emt 0:01:30]} 26. Qe3 {[%emt 0:06:40]} Kh7 {[%emt 0:01:30]} 27. Bxb8 {[%emt 0:01:22]} Qxb8 {[%emt 0:03:30]} 28. Rc8 {[%emt 0:01:49]} Qa7 {[%emt 0:00:30]} 29. Rxf8 {[%emt 0:01:08]} Bxf8 {[%emt 0:01:30]} 30. Rc8 {[%emt 0:00:56]} Bh6 {[%emt 0:00:30]} 31. Qf3 {[%emt 0:04:42]} 1-0